[Event "European Online Club-ch-F 2021"]
[Site "Online"]
[Date "2021.03.27"]
[Round "8.19"]
[White "Druska, Juraj"]
[Black "Can, Isik"]
[Result "1/2-1/2"]
[ECO "B13"]
[WhiteElo "2495"]
[BlackElo "2380"]
[Annotator "ChessBase"]
[PlyCount "91"]
[EventDate "2021.03.27"]
[EventType "team-tourn"]
[EventCountry "NET"]
[SourceTitle "playchess.com"]
[Source "ChessBase"]
[SourceQuality "1"]
[TimeControl "900+5"]

1. e4 {[%emt 0:00:00]} c6 {[%emt 0:00:07]} 2. d4 {[%emt 0:00:02]} d5 {[%emt 0:00:02]} 3. exd5 {[%emt 0:00:00]} cxd5 {[%emt 0:00:02]} 4. Bd3 {[%emt 0:00:01]} Nc6 {[%emt 0:00:02]} 5. c3 {[%emt 0:00:01]} g6 {[%emt 0:00:02]} 6. Nf3 {[%emt 0:00:13]} Bf5 {[%emt 0:00:03]} 7. Be2 {[%emt 0:00:02]} Bg7 {[%emt 0:01:16]} 8. O-O {[%emt 0:00:04]} e6 {[%emt 0:00:38]} 9. h3 {[%emt 0:00:59]} Bxb1 {[%emt 0:00:05]} 10. Rxb1 {[%emt 0:00:04]} Nge7 {[%emt 0:00:02]} 11. Bf4 {[%emt 0:00:29]} O-O {[%emt 0:00:07]} 12. Qd2 {[%emt 0:00:02]} Nf5 {[%emt 0:00:23]} 13. Bd3 {[%emt 0:00:42]} Nd6 {[%emt 0:00:11]} 14. Rfe1 {[%emt 0:00:53]} a6 {[%emt 0:00:19]} 15. Bh6 {[%emt 0:00:24]} b5 {[%emt 0:00:18]} 16. h4 {[%emt 0:00:22]} Nc4 {[%emt 0:01:10]} 17. Bxc4 {[%emt 0:02:01]} bxc4 {[%emt 0:00:09]} 18. h5 {[%emt 0:00:06]} Bxh6 {[%emt 0:01:21]} 19. Qxh6 {[%emt 0:00:04]} Qf6 {[%emt 0:00:02]} 20. hxg6 {[%emt 0:00:16]} hxg6 {[%emt 0:00:56]} 21. Ng5 {[%emt 0:04:03]} Qh8 {[%emt 0:02:01]} 22. Qxh8+ {[%emt 0:00:11]} Kxh8 {[%emt 0:00:02]} 23. Nxe6 {[%emt 0:01:10]} fxe6 {[%emt 0:00:04]} 24. Rxe6 {[%emt 0:00:00]} Rac8 {[%emt 0:00:13]} 25. Rxg6 {[%emt 0:00:02]} Rg8 {[%emt 0:01:19]} 26. Re6 {[%emt 0:00:25]} Rge8 {[%emt 0:00:03]} 27. Rbe1 {[%emt 0:00:04]} Rxe6 {[%emt 0:00:10]} 28. Rxe6 {[%emt 0:00:00]} Kg7 {[%emt 0:03:48]} 29. Rd6 {[%emt 0:00:30]} Ne7 {[%emt 0:00:24]} 30. Rxa6 {[%emt 0:00:02]} Rb8 {[%emt 0:00:06]} 31. Re6 {[%emt 0:00:03]} Ng6 {[%emt 0:00:02]} 32. b3 {[%emt 0:02:46]} Nf4 {[%emt 0:01:17]} 33. Rc6 {[%emt 0:00:18]} cxb3 {[%emt 0:00:05]} 34. axb3 {[%emt 0:00:00]} Rxb3 {[%emt 0:00:11]} 35. c4 {[%emt 0:00:05]} Ne2+ {[%emt 0:00:20]} 36. Kh2 {[%emt 0:00:08]} dxc4 {[%emt 0:00:10]} 37. Rxc4 {[%emt 0:00:00]} Rd3 {[%emt 0:00:02]} 38. g3 {[%emt 0:00:12]} Nxd4 {[%emt 0:00:04]} 39. Kg2 {[%emt 0:00:03]} Kf6 {[%emt 0:00:09]} 40. Ra4 {[%emt 0:00:03]} Rd2 {[%emt 0:00:13]} 41. Ra6+ {[%emt 0:00:03]} Ke5 {[%emt 0:00:03]} 42. Ra5+ {[%emt 0:00:01]} Ke4 {[%emt 0:00:03]} 43. Ra4 {[%emt 0:00:03]} Ke5 {[%emt 0:00:07]} 44. Ra5+ {[%emt 0:00:02]} Ke4 {[%emt 0:00:07]} 45. Ra4 {[%emt 0:00:01]} Ke5 {[%emt 0:00:02]} 46. Ra5+ {[%emt 0:00:01]} 1/2-1/2

[Event "European Online Club-ch-F 2021"]
[Site "Online"]
[Date "2021.03.27"]
[Round "8.20"]
[White "Kamer, Kayra"]
[Black "Jablonicky, Martin"]
[Result "0-1"]
[ECO "C47"]
[WhiteElo "2339"]
[BlackElo "2298"]
[Annotator "NA"]
[PlyCount "114"]
[EventDate "2021.03.27"]
[EventType "team-tourn"]
[EventCountry "NET"]
[SourceTitle "playchess.com"]
[Source "ChessBase"]
[SourceQuality "1"]
[TimeControl "900+5"]

1. e4 {[%emt 0:00:00]} e5 {[%emt 0:00:07]} 2. Nf3 {[%emt 0:00:03]} Nf6 {[%emt 0:00:02]} 3. Nc3 {[%emt 0:00:04]} Nc6 {[%emt 0:00:02]} 4. d4 {[%emt 0:00:04]} exd4 {[%emt 0:00:02]} 5. Nxd4 {[%emt 0:00:01]} Bb4 {[%emt 0:00:02]} 6. Nxc6 {[%emt 0:00:02]} bxc6 {[%emt 0:00:01]} 7. Bd3 {[%emt 0:00:01]} d5 {[%emt 0:00:02]} 8. exd5 {[%emt 0:00:01]} O-O {[%emt 0:00:02]} 9. O-O {[%emt 0:00:02]} cxd5 {[%emt 0:00:24]} 10. Bg5 {[%emt 0:00:04]} c6 {[%emt 0:00:04]} 11. Qf3 {[%emt 0:00:03]} Bd6 {[%emt 0:00:05]} 12. Ne2 {[%emt 0:00:11]} Rb8 {[%emt 0:00:09]} 13. Nd4 {[%emt 0:00:39]} Bd7 {[%emt 0:00:16]} 14. Nf5 {[%emt 0:00:24]} Be5 {[%emt 0:00:31]} 15. Qh3 {[%emt 0:01:33]} g6 {[%emt 0:01:22]} 16. Nh6+ {[%emt 0:01:29]} Kg7 {[%emt 0:00:05]} 17. Qh4 {[%emt 0:00:02]} Qb6 {[%emt 0:01:46]} 18. Kh1 {[%emt 0:01:18]} Ng8 {[%emt 0:00:58]} 19. f4 {[%emt 0:00:44]} Bxb2 {[%emt 0:03:56]} 20. f5 {[%emt 0:00:28]} Bxa1 {[%emt 0:02:18]} 21. Nxg8 {[%emt 0:01:27]} Kxg8 {[%emt 0:00:49]} 22. f6 {[%emt 0:00:07]} h5 {[%emt 0:00:03]} 23. Bd2 {[%emt 0:01:36]} Qd4 {[%emt 0:00:58]} 24. Qg5 {[%emt 0:00:42]} Qg4 {[%emt 0:01:42]} 25. Rxa1 {[%emt 0:02:31]} Qxg5 {[%emt 0:00:03]} 26. Bxg5 {[%emt 0:00:02]} Rfe8 {[%emt 0:00:04]} 27. h3 {[%emt 0:00:24]} c5 {[%emt 0:00:03]} 28. c4 {[%emt 0:00:04]} dxc4 {[%emt 0:00:10]} 29. Bxc4 {[%emt 0:00:05]} Rb2 {[%emt 0:00:10]} 30. Rd1 {[%emt 0:00:34]} Ba4 {[%emt 0:00:14]} 31. Rd6 {[%emt 0:00:18]} Bb5 {[%emt 0:00:46]} 32. Bd5 {[%emt 0:00:32]} c4 {[%emt 0:00:12]} 33. a4 {[%emt 0:00:01]} Bxa4 {[%emt 0:00:03]} 34. Bxc4 {[%emt 0:00:01]} Bb3 {[%emt 0:00:04]} 35. Bb5 {[%emt 0:00:10]} Rb8 {[%emt 0:00:11]} 36. Bd3 {[%emt 0:00:27]} Be6 {[%emt 0:00:07]} 37. Bxg6 {[%emt 0:00:13]} R2b6 {[%emt 0:00:02]} 38. Rxb6 {[%emt 0:00:10]} Rxb6 {[%emt 0:00:05]} 39. Bxh5 {[%emt 0:00:02]} a5 {[%emt 0:00:02]} 40. Kh2 {[%emt 0:00:20]} a4 {[%emt 0:00:01]} 41. Bc1 {[%emt 0:00:01]} Rb1 {[%emt 0:00:05]} 42. Ba3 {[%emt 0:00:03]} Ra1 {[%emt 0:00:02]} 43. Bb2 {[%emt 0:00:04]} Ra2 {[%emt 0:00:03]} 44. Be5 {[%emt 0:00:01]} Bd5 {[%emt 0:00:02]} 45. h4 {[%emt 0:00:01]} a3 {[%emt 0:00:05]} 46. Kg3 {[%emt 0:00:10]} Rxg2+ {[%emt 0:00:03]} 47. Kf4 {[%emt 0:00:02]} a2 {[%emt 0:00:03]} 48. Bg4 {[%emt 0:00:14]} Rg1 {[%emt 0:00:04]} 49. h5 {[%emt 0:00:02]} a1=Q {[%emt 0:00:03]} 50. Bxa1 {[%emt 0:00:02]} Rxa1 {[%emt 0:00:02]} 51. Kg5 {[%emt 0:00:01]} Rg1 {[%emt 0:00:05]} 52. Kh6 {[%emt 0:00:01]} Rf1 {[%emt 0:00:07]} 53. Bf5 {[%emt 0:00:03]} Kf8 {[%emt 0:00:04]} 54. Bg6 {[%emt 0:00:16]} fxg6 {[%emt 0:00:03]} 55. hxg6 {[%emt 0:00:04]} Rxf6 {[%emt 0:00:02]} 56. Kh7 {[%emt 0:00:01]} Be4 {[%emt 0:00:05]} 57. Kh8 {[%emt 0:00:04]} Rxg6 {[%emt 0:00:03]} 0-1

[Event "European Online Club-ch-F 2021"]
[Site "Online"]
[Date "2021.03.27"]
[Round "9.1"]
[White "Ozen, Deniz"]
[Black "Pulkkinen, Kari"]
[Result "1/2-1/2"]
[ECO "B10"]
[WhiteElo "2397"]
[BlackElo "2256"]
[Annotator "NA"]
[PlyCount "79"]
[EventDate "2021.03.27"]
[EventType "team-tourn"]
[EventCountry "NET"]
[SourceTitle "playchess.com"]
[Source "ChessBase"]
[SourceQuality "1"]
[TimeControl "900+5"]

1. e4 {[%emt 0:00:00]} c5 {[%emt 0:00:03]} 2. Nf3 {[%emt 0:00:02]} g6 {[%emt 0:00:03]} 3. c3 {[%emt 0:00:02]} Bg7 {[%emt 0:00:03]} 4. d4 {[%emt 0:00:01]} cxd4 {[%emt 0:00:02]} 5. cxd4 {[%emt 0:00:01]} d5 {[%emt 0:00:02]} 6. exd5 {[%emt 0:00:01]} Nf6 {[%emt 0:00:02]} 7. Bb5+ {[%emt 0:00:04]} Nbd7 {[%emt 0:00:02]} 8. d6 {[%emt 0:00:03]} O-O {[%emt 0:00:03]} 9. O-O {[%emt 0:00:47]} exd6 {[%emt 0:00:05]} 10. Nc3 {[%emt 0:00:02]} a6 {[%emt 0:00:24]} 11. Bd3 {[%emt 0:00:10]} b5 {[%emt 0:00:10]} 12. Bf4 {[%emt 0:00:10]} Nb6 {[%emt 0:00:03]} 13. Re1 {[%emt 0:00:33]} Bb7 {[%emt 0:00:09]} 14. Ne4 {[%emt 0:00:26]} Nxe4 {[%emt 0:00:07]} 15. Bxe4 {[%emt 0:00:01]} Bxe4 {[%emt 0:00:12]} 16. Rxe4 {[%emt 0:00:03]} Nd5 {[%emt 0:00:19]} 17. Bg3 {[%emt 0:00:29]} Qd7 {[%emt 0:00:19]} 18. Qb3 {[%emt 0:00:22]} Nf6 {[%emt 0:01:04]} 19. Re2 {[%emt 0:00:04]} Rfe8 {[%emt 0:00:09]} 20. Rae1 {[%emt 0:00:02]} Rxe2 {[%emt 0:00:03]} 21. Rxe2 {[%emt 0:00:01]} Rc8 {[%emt 0:00:10]} 22. Rc2 {[%emt 0:00:20]} Ne4 {[%emt 0:00:29]} 23. Qd3 {[%emt 0:00:20]} Rxc2 {[%emt 0:00:06]} 24. Qxc2 {[%emt 0:00:01]} Nxg3 {[%emt 0:00:06]} 25. hxg3 {[%emt 0:00:02]} Qe6 {[%emt 0:00:22]} 26. b3 {[%emt 0:00:05]} d5 {[%emt 0:01:07]} 27. Qc7 {[%emt 0:00:19]} h6 {[%emt 0:00:07]} 28. a4 {[%emt 0:00:22]} bxa4 {[%emt 0:00:08]} 29. bxa4 {[%emt 0:00:02]} g5 {[%emt 0:00:07]} 30. a5 {[%emt 0:00:48]} g4 {[%emt 0:00:25]} 31. Ne5 {[%emt 0:00:04]} Bxe5 {[%emt 0:00:16]} 32. dxe5 {[%emt 0:00:02]} Kh7 {[%emt 0:00:35]} 33. f4 {[%emt 0:00:32]} gxf3 {[%emt 0:00:58]} 34. gxf3 {[%emt 0:00:03]} d4 {[%emt 0:00:17]} 35. Qd6 {[%emt 0:01:10]} Qc4 {[%emt 0:00:12]} 36. Qd7 {[%emt 0:00:57]} Kg8 {[%emt 0:02:36]} 37. Qd8+ {[%emt 0:00:23]} Kh7 {[%emt 0:00:11]} 38. Qd7 {[%emt 0:00:25]} Kg8 {[%emt 0:00:05]} 39. Qd8+ {[%emt 0:00:25]} Kh7 {[%emt 0:00:06]} 40. Qd7 {[%emt 0:00:01]} 1/2-1/2

[Event "European Online Club-ch-F 2021"]
[Site "Online"]
[Date "2021.03.27"]
[Round "9.2"]
[White "Prieur, Eetu"]
[Black "Can, Isik"]
[Result "1-0"]
[ECO "B12"]
[WhiteElo "2172"]
[BlackElo "2380"]
[Annotator "NA"]
[PlyCount "47"]
[EventDate "2021.03.27"]
[EventType "team-tourn"]
[EventCountry "NET"]
[SourceTitle "playchess.com"]
[Source "ChessBase"]
[SourceQuality "1"]
[TimeControl "900+5"]

1. e4 {[%emt 0:00:00]} c6 {[%emt 0:00:05]} 2. d4 {[%emt 0:00:03]} d5 {[%emt 0:00:01]} 3. e5 {[%emt 0:00:02]} Bf5 {[%emt 0:00:03]} 4. Nc3 {[%emt 0:00:04]} e6 {[%emt 0:00:03]} 5. g4 {[%emt 0:00:03]} Bg6 {[%emt 0:00:02]} 6. Nge2 {[%emt 0:00:07]} c5 {[%emt 0:00:06]} 7. h4 {[%emt 0:00:08]} h5 {[%emt 0:00:03]} 8. Nf4 {[%emt 0:00:15]} Bh7 {[%emt 0:00:03]} 9. Nxh5 {[%emt 0:01:15]} Nc6 {[%emt 0:00:24]} 10. Bb5 {[%emt 0:00:36]} cxd4 {[%emt 0:00:14]} 11. Qxd4 {[%emt 0:00:07]} Nge7 {[%emt 0:00:02]} 12. Bh6 {[%emt 0:00:54]} a6 {[%emt 0:02:38]} 13. Bxc6+ {[%emt 0:00:55]} Nxc6 {[%emt 0:00:20]} 14. Qf4 {[%emt 0:00:03]} gxh6 {[%emt 0:05:43]} 15. Nf6+ {[%emt 0:00:09]} Ke7 {[%emt 0:00:03]} 16. Nfxd5+ {[%emt 0:02:24]} exd5 {[%emt 0:00:03]} 17. O-O-O {[%emt 0:00:03]} d4 {[%emt 0:05:36]} 18. Qf6+ {[%emt 0:00:19]} Ke8 {[%emt 0:00:02]} 19. Qxh8 {[%emt 0:00:02]} Bg6 {[%emt 0:00:02]} 20. e6 {[%emt 0:01:00]} fxe6 {[%emt 0:00:10]} 21. Rhe1 {[%emt 0:00:15]} Bf7 {[%emt 0:00:12]} 22. Ne4 {[%emt 0:00:21]} Qxh4 {[%emt 0:00:41]} 23. Nd6+ {[%emt 0:00:32]} Ke7 {[%emt 0:00:06]} 24. Nf5+ {[%emt 0:00:03]} 1-0

[Event "European Online Club-ch-F 2021"]
[Site "Online"]
[Date "2021.03.27"]
[Round "9.3"]
[White "Ozen, Bahadir"]
[Black "Graeffe, Petri"]
[Result "1-0"]
[ECO "C00"]
[WhiteElo "2369"]
[BlackElo "2043"]
[Annotator "NA"]
[PlyCount "67"]
[EventDate "2021.03.27"]
[EventType "team-tourn"]
[EventCountry "NET"]
[SourceTitle "playchess.com"]
[Source "ChessBase"]
[SourceQuality "1"]
[TimeControl "900+5"]

1. g3 {[%emt 0:00:00]} d5 {[%emt 0:00:04]} 2. Bg2 {[%emt 0:00:03]} e6 {[%emt 0:00:02]} 3. d3 {[%emt 0:00:10]} Nf6 {[%emt 0:00:16]} 4. Nd2 {[%emt 0:00:04]} c5 {[%emt 0:00:03]} 5. e4 {[%emt 0:00:02]} Nc6 {[%emt 0:00:02]} 6. Nh3 {[%emt 0:00:02]} Be7 {[%emt 0:00:16]} 7. O-O {[%emt 0:00:02]} b5 {[%emt 0:00:17]} 8. f4 {[%emt 0:00:04]} a5 {[%emt 0:00:53]} 9. Nf2 {[%emt 0:00:20]} a4 {[%emt 0:00:17]} 10. a3 {[%emt 0:00:25]} Qb6 {[%emt 0:00:51]} 11. g4 {[%emt 0:01:12]} h5 {[%emt 0:02:21]} 12. g5 {[%emt 0:00:48]} Ng4 {[%emt 0:01:55]} 13. Nxg4 {[%emt 0:00:25]} hxg4 {[%emt 0:00:02]} 14. Qxg4 {[%emt 0:00:12]} Bd7 {[%emt 0:00:44]} 15. c3 {[%emt 0:00:49]} O-O-O {[%emt 0:00:07]} 16. Qe2 {[%emt 0:00:21]} f6 {[%emt 0:00:57]} 17. Nf3 {[%emt 0:00:13]} fxg5 {[%emt 0:01:12]} 18. Nxg5 {[%emt 0:01:07]} Bxg5 {[%emt 0:00:24]} 19. fxg5 {[%emt 0:00:03]} Qc7 {[%emt 0:00:35]} 20. Bf4 {[%emt 0:00:02]} e5 {[%emt 0:00:03]} 21. Bg3 {[%emt 0:00:36]} d4 {[%emt 0:01:17]} 22. Rac1 {[%emt 0:00:48]} Qd6 {[%emt 0:00:23]} 23. Bf3 {[%emt 0:00:57]} Kb7 {[%emt 0:00:26]} 24. c4 {[%emt 0:00:15]} b4 {[%emt 0:00:42]} 25. Bg4 {[%emt 0:00:04]} Be8 {[%emt 0:00:48]} 26. h4 {[%emt 0:00:07]} Qe7 {[%emt 0:00:34]} 27. Rf2 {[%emt 0:00:10]} Bd7 {[%emt 0:00:06]} 28. Rcf1 {[%emt 0:00:05]} Ka6 {[%emt 0:00:11]} 29. Rf7 {[%emt 0:00:03]} Bxg4 {[%emt 0:00:06]} 30. Qxg4 {[%emt 0:00:03]} Qe8 {[%emt 0:00:03]} 31. Rxg7 {[%emt 0:00:06]} Qh5 {[%emt 0:00:14]} 32. Qxh5 {[%emt 0:00:34]} Rxh5 {[%emt 0:00:02]} 33. Rg6 {[%emt 0:00:04]} Kb7 {[%emt 0:00:05]} 34. Rf7+ {[%emt 0:00:02]} 1-0

[Event "European Online Club-ch-F 2021"]
[Site "Online"]
[Date "2021.03.27"]
[Round "9.4"]
[White "Kivilahti, Rami"]
[Black "Kamer, Kayra"]
[Result "0-1"]
[ECO "A48"]
[WhiteElo "1962"]
[BlackElo "2339"]
[Annotator "NA"]
[PlyCount "52"]
[EventDate "2021.03.27"]
[EventType "team-tourn"]
[EventCountry "NET"]
[SourceTitle "playchess.com"]
[Source "ChessBase"]
[SourceQuality "1"]
[TimeControl "900+5"]

1. d4 {[%emt 0:00:00]} Nf6 {[%emt 0:00:02]} 2. Nf3 {[%emt 0:00:04]} g6 {[%emt 0:00:02]} 3. Bf4 {[%emt 0:00:07]} Bg7 {[%emt 0:00:01]} 4. c3 {[%emt 0:00:02]} O-O {[%emt 0:00:02]} 5. Nbd2 {[%emt 0:00:27]} d6 {[%emt 0:00:10]} 6. e4 {[%emt 0:00:07]} c5 {[%emt 0:00:01]} 7. Bd3 {[%emt 0:00:25]} cxd4 {[%emt 0:00:04]} 8. cxd4 {[%emt 0:00:02]} Nc6 {[%emt 0:00:04]} 9. h3 {[%emt 0:00:20]} Bd7 {[%emt 0:00:10]} 10. O-O {[%emt 0:00:04]} Nxd4 {[%emt 0:00:20]} 11. Nxd4 {[%emt 0:00:04]} e5 {[%emt 0:00:01]} 12. Bxe5 {[%emt 0:01:49]} dxe5 {[%emt 0:00:04]} 13. Ne2 {[%emt 0:00:45]} Bxh3 {[%emt 0:00:04]} 14. Qc2 {[%emt 0:00:17]} Rc8 {[%emt 0:00:03]} 15. Nc3 {[%emt 0:00:03]} Qd7 {[%emt 0:00:31]} 16. Nc4 {[%emt 0:02:16]} Nh5 {[%emt 0:00:52]} 17. Nd5 {[%emt 0:01:56]} b5 {[%emt 0:00:24]} 18. gxh3 {[%emt 0:01:05]} bxc4 {[%emt 0:00:03]} 19. Bxc4 {[%emt 0:00:07]} Qxh3 {[%emt 0:00:10]} 20. Rac1 {[%emt 0:02:33]} Bh6 {[%emt 0:00:14]} 21. Qc3 {[%emt 0:02:33]} Qg4+ {[%emt 0:00:04]} 22. Kh2 {[%emt 0:00:25]} Bf4+ {[%emt 0:00:28]} 23. Nxf4 {[%emt 0:00:19]} Nxf4 {[%emt 0:00:01]} 24. Qg3 {[%emt 0:00:25]} Qh5+ {[%emt 0:00:02]} 25. Kg1 {[%emt 0:00:03]} Rxc4 {[%emt 0:00:01]} 26. Rxc4 {[%emt 0:00:04]} Ne2+ {[%emt 0:00:01]} 0-1

[Event "European Online Club-ch-F 2021"]
[Site "Online"]
[Date "2021.03.27"]
[Round "9.5"]
[White "Hellers, Ferdinand"]
[Black "Pechac, Jergus"]
[Result "0-1"]
[ECO "D02"]
[WhiteElo "2592"]
[BlackElo "2507"]
[Annotator "ChessBase"]
[PlyCount "48"]
[EventDate "2021.03.27"]
[EventType "team-tourn"]
[EventCountry "NET"]
[SourceTitle "playchess.com"]
[Source "ChessBase"]
[SourceQuality "1"]
[TimeControl "900+5"]

1. d4 {[%emt 0:00:00]} Nf6 {[%emt 0:00:05]} 2. Nf3 {[%emt 0:00:05]} d5 {[%emt 0:00:07]} 3. Bf4 {[%emt 0:00:02]} c5 {[%emt 0:00:04]} 4. e3 {[%emt 0:00:06]} Nc6 {[%emt 0:00:03]} 5. c3 {[%emt 0:00:46]} Qb6 {[%emt 0:00:11]} 6. Qb3 {[%emt 0:01:25]} c4 {[%emt 0:00:05]} 7. Qc2 {[%emt 0:00:26]} Bf5 {[%emt 0:00:04]} 8. Qc1 {[%emt 0:00:03]} Nh5 {[%emt 0:00:04]} 9. Bg5 {[%emt 0:00:20]} f6 {[%emt 0:00:10]} 10. Bh4 {[%emt 0:00:08]} g5 {[%emt 0:00:04]} 11. Bg3 {[%emt 0:00:03]} e5 {[%emt 0:00:24]} 12. Be2 {[%emt 0:00:15]} O-O-O {[%emt 0:00:44]} 13. b3 {[%emt 0:01:20]} cxb3 {[%emt 0:01:17]} 14. axb3 {[%emt 0:00:03]} Nxg3 {[%emt 0:00:46]} 15. hxg3 {[%emt 0:00:03]} Qxb3 {[%emt 0:00:16]} 16. dxe5 {[%emt 0:01:37]} fxe5 {[%emt 0:00:03]} 17. Nbd2 {[%emt 0:00:54]} Qb6 {[%emt 0:00:32]} 18. Nxg5 {[%emt 0:00:07]} Rd7 {[%emt 0:01:26]} 19. Ngf3 {[%emt 0:00:47]} Bg7 {[%emt 0:00:56]} 20. O-O {[%emt 0:00:23]} Kb8 {[%emt 0:01:03]} 21. Qa3 {[%emt 0:00:49]} h5 {[%emt 0:02:35]} 22. Nh4 {[%emt 0:01:38]} Bh7 {[%emt 0:00:06]} 23. e4 {[%emt 0:01:03]} dxe4 {[%emt 0:01:15]} 24. Rfc1 {[%emt 0:00:55]} Rxd2 {[%emt 0:00:15]} 0-1

[Event "European Online Club-ch-F 2021"]
[Site "Online"]
[Date "2021.03.27"]
[Round "9.6"]
[White "Druska, Juraj"]
[Black "Rogule, Laura"]
[Result "1-0"]
[ECO "A29"]
[WhiteElo "2495"]
[BlackElo "2286"]
[Annotator "ChessBase"]
[PlyCount "61"]
[EventDate "2021.03.27"]
[EventType "team-tourn"]
[EventCountry "NET"]
[SourceTitle "playchess.com"]
[Source "ChessBase"]
[SourceQuality "1"]
[TimeControl "900+5"]

1. c4 {[%emt 0:00:00]} e5 {[%emt 0:00:15]} 2. g3 {[%emt 0:00:06]} Nf6 {[%emt 0:00:35]} 3. Bg2 {[%emt 0:00:03]} d5 {[%emt 0:00:22]} 4. cxd5 {[%emt 0:00:04]} Nxd5 {[%emt 0:00:02]} 5. Nf3 {[%emt 0:00:19]} Nc6 {[%emt 0:00:07]} 6. O-O {[%emt 0:00:04]} Nb6 {[%emt 0:00:27]} 7. Nc3 {[%emt 0:00:35]} Be7 {[%emt 0:00:06]} 8. d3 {[%emt 0:00:11]} O-O {[%emt 0:00:11]} 9. b3 {[%emt 0:00:02]} Re8 {[%emt 0:01:24]} 10. Bb2 {[%emt 0:00:04]} Bf8 {[%emt 0:01:53]} 11. Rc1 {[%emt 0:00:04]} f6 {[%emt 0:01:06]} 12. Re1 {[%emt 0:00:20]} Be6 {[%emt 0:01:20]} 13. Ne4 {[%emt 0:00:08]} a5 {[%emt 0:02:40]} 14. a3 {[%emt 0:01:53]} Nd5 {[%emt 0:01:20]} 15. Nc5 {[%emt 0:00:18]} Bxc5 {[%emt 0:00:50]} 16. Rxc5 {[%emt 0:00:00]} Ra6 {[%emt 0:00:20]} 17. Qc2 {[%emt 0:00:11]} Nde7 {[%emt 0:00:31]} 18. Rc1 {[%emt 0:00:17]} Nf5 {[%emt 0:00:30]} 19. Qd1 {[%emt 0:00:27]} Re7 {[%emt 0:00:21]} 20. Nd2 {[%emt 0:02:06]} Nfd4 {[%emt 0:01:26]} 21. Bxd4 {[%emt 0:00:08]} Nxd4 {[%emt 0:00:26]} 22. Bxb7 {[%emt 0:00:00]} Rb6 {[%emt 0:00:02]} 23. Be4 {[%emt 0:00:04]} Nxb3 {[%emt 0:00:02]} 24. Nxb3 {[%emt 0:00:05]} Bxb3 {[%emt 0:00:01]} 25. Qd2 {[%emt 0:00:05]} a4 {[%emt 0:00:02]} 26. Qc3 {[%emt 0:00:08]} Qd6 {[%emt 0:00:30]} 27. Qa5 {[%emt 0:01:29]} g6 {[%emt 0:00:06]} 28. Qa7 {[%emt 0:01:04]} f5 {[%emt 0:00:12]} 29. Rxc7 {[%emt 0:00:09]} Rxc7 {[%emt 0:00:09]} 30. Rxc7 {[%emt 0:00:00]} fxe4 {[%emt 0:00:06]} 31. Rc8+ {[%emt 0:00:03]} 1-0

[Event "European Online Club-ch-F 2021"]
[Site "Online"]
[Date "2021.03.27"]
[Round "9.7"]
[White "Reizniece-Ozola, Dana"]
[Black "Jablonicky, Martin"]
[Result "0-1"]
[ECO "E62"]
[WhiteElo "2279"]
[BlackElo "2298"]
[Annotator "NA"]
[PlyCount "80"]
[EventDate "2021.03.27"]
[EventType "team-tourn"]
[EventCountry "NET"]
[SourceTitle "playchess.com"]
[Source "ChessBase"]
[SourceQuality "1"]
[TimeControl "900+5"]

1. c4 {[%emt 0:00:00]} Nf6 {[%emt 0:00:04]} 2. g3 {[%emt 0:00:10]} g6 {[%emt 0:00:05]} 3. Bg2 {[%emt 0:00:03]} Bg7 {[%emt 0:00:01]} 4. Nf3 {[%emt 0:00:03]} O-O {[%emt 0:00:02]} 5. O-O {[%emt 0:00:02]} Nc6 {[%emt 0:00:03]} 6. d4 {[%emt 0:00:09]} d6 {[%emt 0:00:03]} 7. Nc3 {[%emt 0:00:25]} Bg4 {[%emt 0:00:10]} 8. h3 {[%emt 0:00:24]} Bxf3 {[%emt 0:00:03]} 9. Bxf3 {[%emt 0:00:19]} Nd7 {[%emt 0:00:03]} 10. e3 {[%emt 0:00:18]} e5 {[%emt 0:00:04]} 11. d5 {[%emt 0:00:09]} Ne7 {[%emt 0:00:19]} 12. Bg2 {[%emt 0:00:37]} a5 {[%emt 0:00:09]} 13. Rb1 {[%emt 0:00:06]} f5 {[%emt 0:00:05]} 14. f4 {[%emt 0:00:29]} Nc5 {[%emt 0:00:22]} 15. Qc2 {[%emt 0:03:19]} Qd7 {[%emt 0:00:24]} 16. Kh2 {[%emt 0:00:31]} e4 {[%emt 0:00:21]} 17. b3 {[%emt 0:02:33]} Nd3 {[%emt 0:00:15]} 18. Rd1 {[%emt 0:00:10]} c6 {[%emt 0:00:14]} 19. Bf1 {[%emt 0:00:08]} Nb4 {[%emt 0:00:46]} 20. Qd2 {[%emt 0:00:03]} cxd5 {[%emt 0:00:05]} 21. a3 {[%emt 0:01:18]} d4 {[%emt 0:00:04]} 22. exd4 {[%emt 0:00:25]} Nbc6 {[%emt 0:00:02]} 23. Nb5 {[%emt 0:00:18]} d5 {[%emt 0:00:03]} 24. Bb2 {[%emt 0:01:02]} Kh8 {[%emt 0:00:27]} 25. c5 {[%emt 0:00:13]} g5 {[%emt 0:00:06]} 26. Qf2 {[%emt 0:00:27]} gxf4 {[%emt 0:00:16]} 27. gxf4 {[%emt 0:00:02]} Ng6 {[%emt 0:00:20]} 28. Nd6 {[%emt 0:00:13]} Rf6 {[%emt 0:00:19]} 29. Be2 {[%emt 0:00:29]} Rg8 {[%emt 0:00:10]} 30. Bh5 {[%emt 0:00:14]} Bf8 {[%emt 0:00:27]} 31. Nb5 {[%emt 0:00:17]} Nd8 {[%emt 0:00:03]} 32. a4 {[%emt 0:00:06]} Ne6 {[%emt 0:00:03]} 33. Bxg6 {[%emt 0:00:25]} Rfxg6 {[%emt 0:00:04]} 34. Rg1 {[%emt 0:00:02]} Bh6 {[%emt 0:00:43]} 35. Rxg6 {[%emt 0:00:10]} Bxf4+ {[%emt 0:01:35]} 36. Kh1 {[%emt 0:00:02]} Rxg6 {[%emt 0:00:04]} 37. Bc1 {[%emt 0:00:29]} Bxc1 {[%emt 0:00:31]} 38. Rxc1 {[%emt 0:00:05]} f4 {[%emt 0:00:01]} 39. Rg1 {[%emt 0:00:20]} Ng5 {[%emt 0:00:35]} 40. Rg4 {[%emt 0:00:33]} Nxh3 {[%emt 0:00:07]} 0-1